bitfinex/quotes_SOLUSD_20240705
["timestamp","ask_amount","ask_price","bid_price","bid_amount"]
[1720166575879,43.82,126.43,126.33,20.0]
[1720166576058,23.82,126.43,126.33,20.0]
[1720166576975,0.17,126.43,126.33,20.0]
[1720166577173,43.82,126.43,126.33,20.0]
[1720166577487,23.82,126.43,126.33,20.0]
[1720166578056,20.0,126.42,126.33,20.0]
[1720166578260,0.17,126.41,126.33,20.0]
[1720166580076,25.47930201,126.46,126.33,20.0]
[1720166580985,20.0,126.45,126.33,20.0]
[1720166581189,1.82930201,126.46,126.34,15.2408]
[1720166581363,1.82930201,126.46,126.35,20.0]
[1720166582173,1.82930201,126.46,126.36,49.72]
[1720166582373,1.82930201,126.46,126.37,20.0]
[1720166582686,1.82930201,126.46,126.34,15.0708]
[1720166582866,23.65,126.41,126.34,15.0708]
[1720166583783,23.65,126.39,126.3,16.251]
[1720166583967,0.17,126.38,126.3,16.251]
[1720166584289,0.17,126.4,126.3,16.251]
[1720166585088,0.17,126.4,126.31,20.0]
[1720166586677,0.17,126.4,126.3,16.251]
[1720166587392,20.0,126.41,126.3,16.251]
[1720166587560,15.11877613,126.46,126.3,16.251]
[1720166587764,15.11877613,126.46,126.3,56.881]
[1720166587965,15.11877613,126.46,126.31,20.0]
[1720166588267,23.65,126.44,126.31,20.0]
[1720166588466,23.65,126.43,126.32,0.17]
[1720166588767,31.5595,126.43,126.31,20.0]
[1720166589267,0.17,126.42,126.31,20.0]
[1720166589469,23.65,126.41,126.31,20.0]
[1720166589683,0.17,126.4,126.3,16.251]
[1720166589884,23.65,126.39,126.3,16.251]
[1720166590092,0.17,126.38,126.3,16.251]
[1720166590789,0.17,126.39,126.3,16.251]
[1720166590969,0.17,126.39,126.31,20.0]
[1720166591166,43.82,126.4,126.31,20.0]
[1720166591376,43.82,126.4,126.3,16.251]
[1720166591906,23.65,126.43,126.31,0.17]
[1720166592069,23.65,126.45,126.31,0.17]
[1720166592771,23.65,126.45,126.31,20.17]
[1720166593381,1.82930201,126.46,126.31,20.17]
[1720166593586,31.7284,126.45,126.31,20.17]
[1720166593779,31.7284,126.45,126.31,69.82]
[1720166594189,23.82,126.45,126.31,69.82]
[1720166595029,31.5607,126.41,126.3,16.251]
[1720166595175,0.17,126.4,126.3,16.251]
[1720166595369,20.17,126.4,126.3,16.251]
[1720166595975,0.17,126.4,126.3,16.251]
[1720166596378,23.82,126.4,126.3,16.251]
[1720166596583,23.82,126.4,126.31,20.0]
[1720166597393,31.7316,126.4,126.31,20.0]
[1720166597694,23.65,126.39,126.31,20.0]
[1720166597874,0.17,126.38,126.31,20.0]
[1720166598779,0.17,126.39,126.31,20.0]
[1720166598977,0.17,126.39,126.3,16.251]
[1720166598978,23.65,126.38,126.3,16.251]
[1720166599196,23.65,126.36,126.3,16.251]
[1720166599403,0.17,126.35,126.3,16.251]
[1720166599585,0.17,126.35,126.27,6.0827]
[1720166599784,0.17,126.36,126.27,6.0827]
[1720166600382,0.17,126.36,126.26,15.6683]
[1720166600685,0.17,126.36,126.23,6.8842203]
[1720166600686,23.65,126.32,126.23,6.8842203]
[1720166600878,0.17,126.31,126.23,0.4016203]
[1720166601282,23.65,126.3,126.23,0.4016203]
[1720166601478,43.82,126.29,126.23,0.4016203]
[1720166601784,0.17,126.28,126.23,0.4016203]
[1720166603309,23.65,126.27,126.23,0.4016203]
[1720166603606,23.65,126.25,126.23,0.4016203]
[1720166603789,0.17,126.24,126.23,0.4016203]
[1720166603991,43.82,126.24,126.23,0.4016203]
[1720166604793,20.17,126.24,126.23,0.4016203]
[1720166605001,0.17,126.24,126.23,0.4016203]
[1720166606198,20.0,126.27,126.23,0.4016203]
[1720166606403,23.65,126.29,126.23,0.4016203]
[1720166606608,43.65,126.28,126.23,0.4016203]
[1720166607110,20.0,126.28,126.23,0.4016203]
[1720166607411,43.65,126.29,126.23,0.4016203]
[1720166608316,0.17,126.28,126.23,0.4016203]
[1720166609608,43.65,126.29,126.23,0.4016203]
[1720166611012,0.17,126.28,126.23,0.4016203]
[1720166611195,23.65,126.27,126.23,0.4016203]
[1720166611514,0.17,126.26,126.23,0.4016203]
[1720166612403,23.65,126.26,126.23,0.4016203]
[1720166612602,0.17,126.25,126.23,0.4016203]
[1720166612802,43.82,126.27,126.23,0.4016203]
[1720166613004,23.82,126.27,126.23,0.4016203]
[1720166613411,0.17,126.27,126.23,0.4016203]
[1720166613611,23.82,126.28,126.23,0.4016203]
[1720166613820,23.65,126.26,126.15,16.0914]
[1720166614024,43.82,126.25,126.15,16.0914]
[1720166614318,0.17,126.24,126.14,6.2249]
[1720166615697,0.17,126.25,126.14,6.2249]
[1720166615893,0.17,126.25,126.15,20.0]
[1720166616320,0.17,126.25,126.14,6.2249]
[1720166616521,23.65,126.24,126.14,6.2249]
[1720166616823,0.17,126.23,126.14,6.2249]
[1720166617115,20.0,126.25,126.14,6.2249]
[1720166617312,20.0,126.27,126.14,46.9649]
[1720166617701,20.0,126.28,126.14,46.9649]
[1720166617902,20.0,126.28,126.15,0.17]
[1720166618113,20.0,126.28,126.15,20.17]
[1720166618418,43.65,126.28,126.15,20.17]
[1720166620210,0.17,126.27,126.15,20.17]
[1720166620929,23.65,126.31,126.16,16.5479]
[1720166621114,23.65,126.31,126.17,60.91]
[1720166621908,13.9924,126.33,126.17,60.91]
[1720166622113,6.0763,126.33,126.17,60.91]
[1720166622615,13.9921,126.33,126.17,60.91]
[1720166623028,31.5664,126.32,126.17,60.91]
[1720166623324,20.0,126.31,126.17,60.91]
[1720166624310,43.65,126.31,126.17,60.91]
[1720166624620,20.0,126.31,126.17,60.91]
[1720166625016,0.17,126.3,126.18,6.5205]
[1720166625202,0.17,126.3,126.19,20.17]
[1720166626329,0.17,126.3,126.2,40.74]
[1720166626503,23.65,126.34,126.21,20.17]
[1720166626709,6.3955,126.37,126.21,120.17]
[1720166626925,7.9121,126.39,126.24,40.74]
[1720166627104,7.9121,126.39,126.26,16.0302]
[1720166627302,23.65,126.39,126.27,20.0]
[1720166627911,23.65,126.36,126.27,20.0]
[1720166628328,0.17,126.35,126.27,20.0]
[1720166628631,20.17,126.35,126.27,20.0]
[1720166628833,23.82,126.35,126.27,20.0]
[1720166629710,0.17,126.35,126.27,20.0]
[1720166630226,0.17,126.35,126.27,21.58353295]
[1720166630539,20.17,126.35,126.27,21.58353295]
[1720166630832,43.82,126.35,126.27,21.58353295]
[1720166632130,43.82,126.35,126.27,20.0]
[1720166633041,43.82,126.35,126.26,16.0302]
[1720166633241,51.7349,126.35,126.26,16.0302]
[1720166633536,23.65,126.33,126.26,16.0302]
[1720166633719,43.82,126.32,126.26,16.0302]
[1720166634726,23.65,126.31,126.22,22.3155]
[1720166634922,0.17,126.3,126.22,22.3155]
[1720166635137,43.82,126.3,126.22,22.3155]
[1720166635338,23.82,126.3,126.22,22.3155]
[1720166635921,0.17,126.3,126.22,22.3155]
[1720166636114,20.17,126.3,126.22,22.3155]
[1720166636725,0.17,126.3,126.22,22.3155]
[1720166636930,0.17,126.31,126.22,22.3155]
[1720166639339,23.82,126.31,126.22,22.3155]
[1720166639527,20.0,126.3,126.22,22.3155]
[1720166639749,0.17,126.29,126.22,22.3155]
[1720166639921,0.17,126.29,126.23,1.58400339]
[1720166640353,19.7821,126.38,126.22,22.3155]
[1720166640554,5.44382314,126.34,126.23,20.0]
[1720166640733,20.0,126.33,126.23,20.0]
[1720166641342,20.0,126.35,126.23,20.0]
[1720166641550,7.9139,126.36,126.23,20.0]
[1720166641749,20.0,126.35,126.23,20.0]
[1720166642260,23.65,126.36,126.23,20.0]
[1720166642753,7.915,126.35,126.23,20.0]
[1720166643228,23.82,126.34,126.23,20.0]
[1720166643648,20.0,126.33,126.23,20.0]
[1720166643949,0.17,126.32,126.23,20.0]
[1720166644152,1.82930201,126.37,126.23,20.0]
[1720166644153,1.82930201,126.37,126.25,16.025]
[1720166644371,1.82930201,126.37,126.27,6.5682]
[1720166644673,1.82930201,126.37,126.28,20.0]
[1720166644829,1.82930201,126.37,126.29,16.025]
[1720166645027,1.82930201,126.37,126.3,20.0]
[1720166647143,0.17,126.36,126.3,20.0]
[1720166647937,1.82930201,126.37,126.3,20.0]
[1720166649334,23.71112524,126.48,126.33,16.2241]
[1720166649534,7.9066,126.48,126.34,20.0]
[1720166650244,23.65,126.47,126.34,20.0]
[1720166650635,23.65,126.48,126.35,22.1347]
[1720166650848,23.65,126.48,126.36,60.74]
[1720166651760,31.5565,126.48,126.36,60.74]
[1720166652057,20.17,126.47,126.36,60.74]
[1720166652358,43.82,126.47,126.36,60.74]
[1720166653134,43.82,126.47,126.36,62.57068456]
[1720166654732,43.82,126.47,126.36,1.83068456]
[1720166655155,23.65,126.43,126.36,1.83068456]
[1720166655467,0.17,126.42,126.35,21.9647]
[1720166655882,20.17,126.43,126.35,21.9647]
[1720166656537,0.17,126.43,126.35,21.9647]
[1720166656747,0.17,126.44,126.35,21.9647]
[1720166658046,31.7289,126.44,126.35,21.9647]
[1720166658347,20.0,126.43,126.35,21.9647]
[1720166658542,0.17,126.42,126.35,21.9647]
[1720166659052,0.17,126.42,126.36,20.0]
[1720166659256,0.17,126.43,126.36,20.0]
[1720166659453,43.82,126.44,126.36,20.0]
[1720166660172,7.9097,126.43,126.36,20.0]
[1720166660343,0.17,126.42,126.35,21.9647]
[1720166660538,31.5609,126.41,126.35,15.4815]
[1720166660745,0.17,126.4,126.35,15.4815]
[1720166661062,20.17,126.4,126.35,15.4815]
[1720166661863,0.17,126.4,126.35,15.4815]
[1720166663447,0.17,126.4,126.31,47.0221]
[1720166663448,23.82,126.4,126.31,22.5933]
[1720166663670,20.0,126.39,126.31,22.5933]
[1720166663872,0.17,126.38,126.31,22.5933]
[1720166664667,8.0826,126.38,126.31,22.5933]
[1720166664858,0.17,126.38,126.31,22.5933]
[1720166666569,20.0,126.4,126.31,22.5933]
[1720166666957,27.9109,126.41,126.31,22.5933]
[1720166667149,20.0,126.41,126.31,22.5933]
[1720166667354,6.5863,126.44,126.31,22.5933]
[1720166667355,23.65,126.42,126.31,22.5933]
[1720166667549,51.5611,126.41,126.31,22.5933]
[1720166667873,20.0,126.41,126.31,22.5933]
[1720166668375,20.0,126.41,126.32,1.83126425]
[1720166669347,7.9125,126.39,126.32,1.83126425]
[1720166669547,25.14017925,126.43,126.31,16.3112]
[1720166669548,23.65,126.36,126.31,16.3112]
[1720166669759,43.82,126.35,126.27,22.9607]
[1720166669961,7.9152,126.34,126.27,22.9607]
[1720166670285,31.5664,126.32,126.27,22.9607]
[1720166670454,0.17,126.31,126.27,16.323]
[1720166671064,7.917,126.31,126.27,16.323]
[1720166671264,28.0878,126.3,126.24,6.3945]
[1720166671463,43.82,126.3,126.24,6.3945]
[1720166671677,51.7377,126.3,126.24,6.3945]
[1720166671975,20.17,126.3,126.24,6.3945]
[1720166672788,0.17,126.3,126.24,6.3945]
[1720166673790,0.17,126.31,126.24,6.3945]
[1720166674682,7.9145,126.35,126.25,20.0]
[1720166674984,5.42695235,126.35,126.25,20.0]
[1720166675183,23.65,126.34,126.25,20.0]
[1720166675356,23.65,126.33,126.25,20.0]
[1720166675557,23.65,126.32,126.25,20.0]
[1720166675757,23.65,126.32,126.23,15.43]
[1720166676073,31.5664,126.32,126.24,20.0]
[1720166676460,0.17,126.31,126.24,20.0]
[1720166676976,8.087,126.31,126.24,20.0]
[1720166677479,0.17,126.31,126.24,20.0]
[1720166677893,31.737,126.31,126.24,20.0]
[1720166678184,0.17,126.31,126.24,20.0]
[1720166678379,7.9171,126.31,126.24,20.0]
[1720166678684,0.17,126.3,126.24,20.0]
[1720166678872,8.0864,126.32,126.24,20.0]
[1720166679181,31.7364,126.32,126.24,20.0]
[1720166679566,7.9149,126.35,126.24,20.0]
[1720166679768,27.9152,126.34,126.24,21.83242475]
[1720166680078,7.9158,126.33,126.24,21.83242475]
[1720166680264,31.5665,126.32,126.24,21.83242475]
[1720166680468,20.0,126.34,126.24,21.83242475]
[1720166680662,7.9158,126.33,126.24,23.4162096]
[1720166680862,28.0864,126.32,126.24,1.83242475]
[1720166681066,51.5671,126.31,126.24,1.83242475]
[1720166681286,0.17,126.3,126.24,1.83242475]
[1720166682394,31.7377,126.3,126.23,15.43]
[1720166682566,8.22054042,126.29,126.23,15.43]
[1720166682763,0.17,126.28,126.23,15.43]
[1720166684493,20.17,126.28,126.2,6.6581]
[1720166684675,23.65,126.25,126.18,15.4363]
[1720166684880,28.0914,126.24,126.18,15.4363]
[1720166685563,51.7414,126.24,126.18,15.4363]
[1720166686094,7.9234,126.21,126.16,6.2536]
[1720166686300,0.17,126.2,126.16,6.2536]
[1720166686471,23.65,126.19,126.11,0.04698618]
[1720166686895,31.5758,126.17,126.11,0.04698618]
[1720166687192,20.17,126.16,126.11,0.04698618]
[1720166687973,0.17,126.16,126.11,0.04698618]
[1720166688590,0.17,126.17,126.11,0.04698618]
[1720166688895,0.17,126.18,126.11,0.04698618]
[1720166689097,20.17,126.19,126.11,0.04698618]
[1720166689988,28.0946,126.19,126.11,0.04698618]
[1720166690175,20.17,126.19,126.11,0.04698618]
[1720166690379,51.7447,126.19,126.11,0.04698618]
[1720166691395,7.9252,126.18,126.11,0.04698618]
[1720166691586,20.17,126.17,126.11,0.04698618]
[1720166691990,43.82,126.17,126.11,0.04698618]
[1720166692199,7.9269,126.16,126.11,0.04698618]
[1720166692371,20.17,126.15,126.11,0.04698618]
[1720166693009,28.38501845,126.15,126.11,0.04698618]
[1720166694280,7.9289,126.12,126.11,0.04698618]
[1720166694511,0.17,126.12,126.11,0.04698618]
[1720166697790,7.9302,126.1,126.04,6.6593]
[1720166698109,0.17,126.09,126.04,6.6593]
[1720166698308,8.101,126.09,126.04,6.6593]
[1720166698521,20.0,126.08,126.04,6.6593]
[1720166698804,0.17,126.07,126.04,6.6593]
[1720166699494,0.17,126.08,126.02,16.3736]
[1720166701094,8.1015,126.08,126.02,16.3736]
[1720166701308,7.9321,126.07,126.02,16.3736]
[1720166701488,0.17,126.06,126.02,16.3736]
[1720166701689,8.1028,126.06,126.0,6.0101]
[1720166701914,0.17,126.06,126.0,6.0101]
[1720166702220,20.0,126.09,126.0,6.0101]
[1720166702387,0.17,126.07,126.0,6.0101]
[1720166702587,20.0,126.1,126.0,7.84601508]
[1720166702886,0.17,126.09,126.0,7.84601508]
[1720166703087,24.86993082,126.17,126.02,22.0089]
[1720166703413,6.6024,126.21,126.04,62.9869]
[1720166703596,14.5261,126.21,126.05,29.99611283]
[1720166703795,7.9244,126.2,126.05,29.99611283]
[1720166704010,5.6439154,126.21,126.06,22.407]
[1720166704313,31.44571793,126.25,126.07,29.99611283]
[1720166704500,31.44571793,126.25,126.08,22.407]
[1720166704704,7.9231,126.22,126.09,20.17]
[1720166704897,7.9231,126.22,126.09,29.99611283]
[1720166705103,31.5731,126.22,126.09,29.99611283]
[1720166705301,8.21479009,126.21,126.09,29.99611283]
[1720166705503,8.21479009,126.21,126.1,9.99826177]
[1720166705708,20.0,126.2,126.11,0.17]
[1720166706318,8.21479009,126.21,126.11,0.17]
[1720166707023,31.86479009,126.21,126.1,9.99826177]
[1720166707202,0.17,126.2,126.1,9.99826177]
[1720166707641,8.21479009,126.21,126.1,9.99826177]
[1720166707811,8.21479009,126.21,126.12,22.5519]
[1720166708114,40.76,126.29,126.12,22.5519]
[1720166708427,8.21636374,126.25,126.13,20.17]
[1720166708598,6.4621,126.3,126.14,22.5519]
[1720166708798,6.4621,126.3,126.15,0.17]
[1720166708799,12.08847584,126.3,126.15,0.17]
[1720166709017,16.13496775,126.26,126.15,0.17]
[1720166709327,7.9208,126.25,126.14,22.5519]
[1720166709513,8.21476425,126.25,126.14,22.5519]
[1720166709819,8.21476425,126.25,126.15,1.83373207]
[1720166710024,31.86476425,126.25,126.15,1.83373207]
[1720166710202,7.9249,126.19,126.15,1.83373207]
[1720166710409,0.17,126.18,126.15,1.83373207]
[1720166710994,0.17,126.18,126.14,22.5519]
[1720166711396,8.0952,126.18,126.14,16.3632]
[1720166711621,0.17,126.18,126.1,21.0927]
[1720166711913,43.82,126.18,126.1,21.0927]
[1720166712096,7.9263,126.17,126.1,21.0927]
[1720166712298,0.17,126.16,126.1,21.0927]
[1720166712909,0.17,126.17,126.1,21.0927]
[1720166713110,7.9234,126.21,126.1,21.0927]
[1720166713302,0.17,126.2,126.1,21.0927]
[1720166713498,28.01726425,126.25,126.1,21.0927]
[1720166713710,28.01726425,126.25,126.1,22.92715916]
[1720166713999,7.9219,126.24,126.11,20.0]
[1720166714318,8.21476425,126.25,126.12,1.83416826]
[1720166714518,23.65,126.21,126.12,1.83416826]
[1720166714820,19.8042,126.24,126.12,1.83416826]
[1720166715226,7.9234,126.21,126.12,1.83416826]
[1720166715397,19.8042,126.24,126.12,1.83416826]
[1720166715597,7.9243,126.2,126.12,1.83416826]
[1720166715826,0.17,126.19,126.12,1.83416826]
[1720166716408,43.65,126.21,126.12,1.83416826]
[1720166716409,0.17,126.2,126.12,1.83416826]
[1720166717206,0.17,126.21,126.12,1.83416826]
[1720166718195,0.17,126.22,126.12,1.83416826]
[1720166719323,20.17,126.22,126.12,1.83416826]
[1720166719632,51.7431,126.22,126.12,1.83416826]
[1720166719800,16.1464367,126.21,126.12,1.83416826]
[1720166720140,20.17,126.2,126.12,1.83416826]
[1720166720917,51.7439,126.2,126.1,21.0927]
[1720166721131,7.9247,126.19,126.1,21.0927]
[1720166721334,0.17,126.18,126.1,21.0927]
[1720166723034,0.17,126.19,126.1,21.0927]
[1720166723408,8.2230367,126.21,126.11,20.0]
[1720166723830,8.2230367,126.21,126.11,21.8343137]
[1720166724216,8.2230367,126.21,126.12,1.83416826]
[1720166724610,13.51095296,126.27,126.13,21.6685]
[1720166724835,8.22189446,126.25,126.14,20.17]
[1720166725214,31.5684,126.29,126.15,24.58863207]
[1720166725428,31.5684,126.29,126.16,22.00358672]
[1720166725732,8.22151248,126.27,126.17,1.83344139]
[1720166726036,8.22151248,126.27,126.18,16.1373]
[1720166727119,0.17,126.26,126.18,16.1373]
[1720166727717,8.22151248,126.27,126.18,16.1373]
[1720166728530,8.22151248,126.27,126.19,6.2707]
[1720166729743,31.567,126.31,126.2,21.83300555]
[1720166730034,8.22140134,126.28,126.2,1.83300555]
[1720166730213,7.9176,126.3,126.2,1.83300555]
[1720166730421,8.22121232,126.3,126.2,1.83300555]
[1720166730944,8.22121232,126.3,126.21,15.6955]
[1720166731234,7.9152,126.34,126.23,6.2218]
[1720166731430,8.22171484,126.33,126.23,6.2218]
[1720166731629,8.22171484,126.33,126.24,20.0]
[1720166732339,16.13751484,126.33,126.24,20.0]
[1720166732721,23.65,126.31,126.24,20.0]
[1720166732923,7.9185,126.29,126.23,6.2218]
[1720166733123,0.17,126.28,126.23,6.2218]
[1720166733740,0.17,126.29,126.23,6.2218]
[1720166734325,20.17,126.3,126.23,6.2218]
[1720166734543,20.0,126.3,126.23,6.2218]
[1720166734838,0.17,126.29,126.23,6.2218]
[1720166736627,23.82,126.29,126.23,6.2218]
[1720166737015,31.7383,126.29,126.23,6.2218]
[1720166737346,23.82,126.29,126.23,6.2218]
[1720166737526,20.0,126.28,126.23,6.2218]
[1720166737729,0.17,126.27,126.23,6.2218]
[1720166738727,0.17,126.27,126.21,15.6955]
[1720166739026,31.74,126.27,126.21,15.6955]
[1720166739224,20.0,126.26,126.21,15.6955]
[1720166739448,0.17,126.25,126.21,15.6955]
[1720166739827,31.7412,126.25,126.17,15.4128]
[1720166740035,23.65,126.23,126.17,15.4128]
[1720166740338,8.0927,126.22,126.17,15.4128]
[1720166740539,0.17,126.22,126.17,15.4128]
[1720166741929,0.17,126.23,126.17,15.4128]
[1720166742629,20.17,126.23,126.17,15.4128]
[1720166746351,43.82,126.23,126.17,15.4128]
[1720166746730,51.7424,126.23,126.17,15.4128]
[1720166749157,31.5727,126.22,126.17,15.4128]
[1720166749325,20.17,126.21,126.17,15.4128]
[1720166749951,0.17,126.21,126.17,15.4128]
[1720166751953,8.22010443,126.2,126.17,15.4128]
[1720166752730,0.17,126.19,126.17,15.4128]
[1720166752938,8.22010443,126.2,126.17,15.4128]
[1720166754462,0.17,126.19,126.17,15.4128]
[1720166754951,0.17,126.19,126.15,6.5011]
[1720166755159,20.17,126.19,126.13,15.5586]
[1720166755357,20.17,126.19,126.13,14.1826]
[1720166760950,44.01,126.19,126.11,6.4574]
[1720166761265,31.7662,126.17,126.09,15.5573]
[1720166761570,20.17,126.16,126.09,15.5573]
[1720166761938,28.0965,126.16,126.09,15.5573]
[1720166762141,44.01,126.16,126.09,15.5573]
[1720166762340,8.22307862,126.15,126.09,15.5573]
[1720166762559,0.17,126.14,126.09,15.5573]
[1720166764161,20.17,126.14,126.08,6.1736]
[1720166765368,20.17,126.14,125.97,117.25360897]
[1720166765369,31.7694,126.12,126.04,6.3516]
[1720166765554,27.9296,126.11,126.04,6.3516]
[1720166765874,8.1002,126.1,126.03,15.2477]
[1720166766182,7.9321,126.07,125.99,15.1289]
[1720166766382,7.9334,126.05,125.99,15.1289]
[1720166766554,0.17,126.04,125.99,15.1289]
[1720166766753,20.0,126.05,125.99,15.1289]
[1720166766978,0.17,126.04,125.99,15.9488691]
[1720166767279,0.17,126.04,125.99,15.1289]
[1720166767788,20.0,126.06,125.99,15.1289]
[1720166767789,0.17,126.05,125.99,15.1289]
[1720166767951,7.9297,126.11,125.99,15.1289]
[1720166768267,20.17,126.1,125.99,15.1289]
[1720166768649,7.9321,126.07,125.99,15.1289]
[1720166768854,0.17,126.06,125.99,15.1289]
[1720166769172,20.0,126.11,126.0,20.0]
[1720166769372,7.9312,126.09,126.0,20.0]
[1720166769670,7.9322,126.07,126.0,20.0]
[1720166769870,0.17,126.06,126.0,20.0]
[1720166770352,0.17,126.07,126.0,20.0]
[1720166771074,8.22307862,126.15,126.01,6.3166]
[1720166771377,8.22307862,126.15,126.03,15.4677]
[1720166771578,8.22307862,126.15,126.04,20.17]
[1720166771991,8.22307862,126.15,126.05,6.4459]
[1720166772163,8.22307862,126.15,126.06,20.0]
[1720166773678,7.9253,126.18,126.08,15.9361]
[1720166773893,8.22834641,126.18,126.09,20.0]
[1720166774670,8.22834641,126.18,126.1,0.17]
[1720166775664,8.22834641,126.18,126.11,1.8343137]
[1720166776792,0.17,126.17,126.09,20.0]
[1720166776968,8.22834641,126.18,126.09,20.0]
[1720166777167,8.22834641,126.18,126.09,21.83460465]
[1720166777770,7.9221,126.23,126.1,6.7332]
[1720166777962,6.5697,126.25,126.11,20.0]
[1720166777963,8.22974209,126.22,126.11,20.0]
[1720166778164,16.15254209,126.22,126.11,20.0]
[1720166778982,20.0,126.21,126.11,20.0]
[1720166779175,0.17,126.2,126.11,20.0]
[1720166781169,39.99244209,126.22,126.13,6.186]
[1720166781170,8.22974209,126.22,126.13,6.186]
[1720166781482,8.22974209,126.22,126.14,20.0]
[1720166784271,0.17,126.21,126.14,20.0]
[1720166784666,8.22974209,126.22,126.14,20.0]
[1720166784868,8.22974209,126.22,126.16,15.6]
[1720166785075,272.0511,126.31,126.18,6.2881]
[1720166785275,8.22881437,126.26,126.18,6.2881]
[1720166785579,15.2511,126.31,126.19,20.0]
[1720166785880,8.22836377,126.26,126.19,20.0]
[1720166786092,31.7577,126.3,126.19,20.0]
[1720166786397,8.22883098,126.26,126.19,20.0]
[1720166786781,0.17,126.27,126.19,20.0]
[1720166786983,8.22884292,126.26,126.19,20.0]
[1720166787484,0.17,126.27,126.19,20.0]
[1720166787888,0.17,126.27,126.2,1.5841152]
[1720166788068,8.22804441,126.29,126.21,1.58398968]
[1720166788265,8.22804441,126.29,126.19,20.0]
[1720166789271,0.17,126.28,126.19,20.0]
[1720166790880,20.17,126.28,126.18,6.2881]
[1720166791292,0.17,126.28,126.19,15.4956]
[1720166792082,0.17,126.28,126.2,20.0]
[1720166794806,8.22804441,126.29,126.21,22.529]
[1720166794975,7.9146,126.35,126.22,20.17]
[1720166795178,23.84,126.34,126.22,20.17]
[1720166795380,8.23067643,126.31,126.22,20.17]
[1720166795687,256.8,126.37,126.23,22.5119]
[1720166795887,8.22884035,126.36,126.24,20.17]
[1720166796601,8.22884035,126.36,126.25,1.83227961]
[1720166796779,8.22884035,126.36,126.26,0.17]
[1720166796982,8.22884035,126.36,126.28,15.6133]
[1720166797181,8.22884035,126.36,126.29,20.0]
[1720166798018,32.06884035,126.36,126.28,15.6133]
[1720166798303,32.06884035,126.36,126.25,15.6943]
[1720166798304,23.84,126.34,126.25,15.6943]
[1720166798493,51.7559,126.33,126.25,15.6943]
[1720166798693,8.0865,126.32,126.25,15.6943]
[1720166798895,0.17,126.32,126.25,15.6943]
[1720166799209,20.17,126.32,126.25,15.6943]
[1720166800904,51.9264,126.32,126.25,15.6943]
[1720166801087,51.9265,126.32,126.25,15.6943]
[1720166801280,31.7577,126.3,126.24,6.3846]
[1720166801487,0.17,126.29,126.24,6.3846]
[1720166802508,28.0884,126.29,126.21,21.8651]
[1720166802677,51.9284,126.29,126.21,21.8651]
[1720166803116,7.9202,126.26,126.18,6.4797]
[1720166803290,0.17,126.25,126.18,6.4797]
[1720166806189,32.07066937,126.24,126.17,15.7865]
[1720166806390,0.17,126.23,126.17,15.7865]
[1720166806585,20.17,126.23,126.17,15.7865]
[1720166806801,20.17,126.23,126.15,6.032]